[Event "*** Titled Tuesday Blitz"]
[Site "Chess.com"]
[Date "2018.04.03"]
[Round "1"]
[White "Incognito_Knight"]
[Black "patrisiii123"]
[Result "0-1"]
[WhiteElo "2552"]
[BlackElo "2250"]
[TimeControl "180+2"]
[EndTime "13:08:31 PDT"]
[Termination "patrisiii123 won on time"]

1. e4 {[%clk 0:02:47.5]} 1... e5 {[%clk 0:03:01.1]} 2. Nf3 {[%clk 0:02:48]} 2...
Nc6 {[%clk 0:03:02.1]} 3. Bb5 {[%clk 0:02:47.7]} 3... a6 {[%clk 0:03:02.8]} 4.
Ba4 {[%clk 0:02:48.7]} 4... Nf6 {[%clk 0:03:03.4]} 5. O-O {[%clk 0:02:50.2]}
5... b5 {[%clk 0:03:04.1]} 6. Bb3 {[%clk 0:02:50.9]} 6... Be7 {[%clk 0:03:03.7]}
7. Re1 {[%clk 0:02:49.6]} 7... O-O {[%clk 0:03:04.2]} 8. a4 {[%clk 0:02:47.5]}
8... b4 {[%clk 0:03:02.4]} 9. d3 {[%clk 0:02:46]} 9... d6 {[%clk 0:03:02.3]} 10.
Nbd2 {[%clk 0:02:43.5]} 10... Na5 {[%clk 0:02:53.7]} 11. Ba2 {[%clk 0:02:43.6]}
11... c5 {[%clk 0:02:54.5]} 12. c3 {[%clk 0:02:36.6]} 12... Nc6 {[%clk 0:02:53]}
13. Nf1 {[%clk 0:02:35.2]} 13... h6 {[%clk 0:02:45.4]} 14. Ng3 {[%clk
0:02:22.7]} 14... Be6 {[%clk 0:02:38.6]} 15. h3 {[%clk 0:02:13]} 15... Rb8
{[%clk 0:02:33.8]} 16. d4 {[%clk 0:02:08.3]} 16... Bxa2 {[%clk 0:02:30.7]} 17.
Rxa2 {[%clk 0:02:08.8]} 17... b3 {[%clk 0:01:30.3]} 18. Ra1 {[%clk 0:02:04.6]}
18... cxd4 {[%clk 0:01:17.8]} 19. cxd4 {[%clk 0:02:05.4]} 19... exd4 {[%clk
0:01:19.7]} 20. Nf5 {[%clk 0:01:42.8]} 20... Ne5 {[%clk 0:01:02]} 21. N3xd4
{[%clk 0:01:39.9]} 21... Re8 {[%clk 0:00:58.3]} 22. a5 {[%clk 0:01:33.8]} 22...
Qd7 {[%clk 0:00:56.3]} 23. Nxb3 {[%clk 0:01:31.6]} 23... Bf8 {[%clk 0:00:48.2]}
24. Nbd4 {[%clk 0:01:22.1]} 24... d5 {[%clk 0:00:41.8]} 25. f4 {[%clk
0:01:16.1]} 25... Ng6 {[%clk 0:00:42.4]} 26. e5 {[%clk 0:01:14.3]} 26... Ne4
{[%clk 0:00:41.7]} 27. Qd3 {[%clk 0:00:58.5]} 27... Bb4 {[%clk 0:00:21.3]} 28.
Rf1 {[%clk 0:00:19.2]} 28... Bc5 {[%clk 0:00:21.9]} 29. Be3 {[%clk 0:00:18.6]}
29... Rb4 {[%clk 0:00:20.5]} 30. Rad1 {[%clk 0:00:17.4]} 30... Reb8 {[%clk
0:00:20.3]} 31. Qxa6 {[%clk 0:00:17.2]} 31... Rxb2 {[%clk 0:00:19.3]} 32. Qc6
{[%clk 0:00:15.2]} 32... Qxc6 {[%clk 0:00:17.9]} 33. Nxc6 {[%clk 0:00:17.1]}
33... Bxe3+ {[%clk 0:00:18.4]} 34. Nxe3 {[%clk 0:00:19]} 34... R8b3 {[%clk
0:00:19.7]} 35. Nxd5 {[%clk 0:00:19.5]} 35... Rg3 {[%clk 0:00:20.8]} 36. Ne3
{[%clk 0:00:13.2]} 36... Rxe3 {[%clk 0:00:20.2]} 0-1

[Event "*** Titled Tuesday Blitz"]
[Site "Chess.com"]
[Date "2018.04.03"]
[Round "1"]
[White "Tramontanaaa"]
[Black "severomorskij"]
[Result "1-0"]
[WhiteElo "2385"]
[BlackElo "2660"]
[TimeControl "180+2"]
[EndTime "13:08:32 PDT"]
[Termination "Tramontanaaa won on time"]

1. e4 {[%clk 0:03:01.1]} 1... c5 {[%clk 0:02:56.9]} 2. Nf3 {[%clk 0:03:01.2]}
2... Nc6 {[%clk 0:02:57.9]} 3. Nc3 {[%clk 0:02:59.7]} 3... e5 {[%clk 0:02:58.2]}
4. Bc4 {[%clk 0:03:00.9]} 4... Be7 {[%clk 0:02:58.7]} 5. d3 {[%clk 0:02:58.3]}
5... Nf6 {[%clk 0:02:59.1]} 6. Ng5 {[%clk 0:02:53.2]} 6... O-O {[%clk
0:02:59.7]} 7. f4 {[%clk 0:02:53.4]} 7... d6 {[%clk 0:03:00.2]} 8. O-O {[%clk
0:02:50.5]} 8... Bg4 {[%clk 0:03:00.1]} 9. Nf3 {[%clk 0:02:45.4]} 9... exf4
{[%clk 0:02:57]} 10. Bxf4 {[%clk 0:02:45.1]} 10... Nd4 {[%clk 0:02:57.9]} 11.
Ne2 {[%clk 0:02:39.1]} 11... Nxf3+ {[%clk 0:02:55.3]} 12. gxf3 {[%clk 0:02:40]}
12... Bh3 {[%clk 0:02:55.8]} 13. Rf2 {[%clk 0:02:38.8]} 13... d5 {[%clk
0:02:56.7]} 14. Bb3 {[%clk 0:02:34.9]} 14... c4 {[%clk 0:02:57.5]} 15. dxc4
{[%clk 0:02:34.8]} 15... dxe4 {[%clk 0:02:58]} 16. Qxd8 {[%clk 0:02:28.9]} 16...
Raxd8 {[%clk 0:02:58]} 17. Be3 {[%clk 0:02:29.5]} 17... exf3 {[%clk 0:02:48.6]}
18. Nf4 {[%clk 0:02:06.2]} 18... Bd7 {[%clk 0:02:38.3]} 19. Rxf3 {[%clk
0:01:53.8]} 19... Bc6 {[%clk 0:02:36.8]} 20. Rh3 {[%clk 0:01:50.1]} 20... Rfe8
{[%clk 0:02:28.9]} 21. Bxa7 {[%clk 0:01:45]} 21... g5 {[%clk 0:02:13.2]} 22. Nd5
{[%clk 0:01:40.9]} 22... Nxd5 {[%clk 0:02:10.5]} 23. cxd5 {[%clk 0:01:42]} 23...
Bxd5 {[%clk 0:02:11.9]} 24. Ba4 {[%clk 0:01:41.9]} 24... Rf8 {[%clk 0:02:03.1]}
25. Re1 {[%clk 0:01:40.8]} 25... Bf6 {[%clk 0:02:01.5]} 26. Bb6 {[%clk
0:01:38.3]} 26... Ra8 {[%clk 0:01:49.2]} 27. Bb3 {[%clk 0:01:38]} 27... Bxb3
{[%clk 0:01:48.5]} 28. axb3 {[%clk 0:01:39.4]} 28... Bxb2 {[%clk 0:01:47.9]} 29.
Re7 {[%clk 0:01:37.9]} 29... Ra6 {[%clk 0:01:26.1]} 30. Be3 {[%clk 0:01:37.9]}
30... g4 {[%clk 0:00:54.6]} 31. Rh5 {[%clk 0:01:27.8]} 31... Rc8 {[%clk
0:00:45.9]} 32. c4 {[%clk 0:01:26]} 32... Bf6 {[%clk 0:00:35.1]} 33. Rxb7 {[%clk
0:01:24.8]} 33... Re8 {[%clk 0:00:35.6]} 34. Bf2 {[%clk 0:01:14.9]} 34... Re2
{[%clk 0:00:27.4]} 35. Rf5 {[%clk 0:01:05.9]} 35... Kg7 {[%clk 0:00:25]} 36. Kf1
{[%clk 0:00:49.9]} 36... Rc2 {[%clk 0:00:18.6]} 37. Kg2 {[%clk 0:00:47.6]} 37...
h5 {[%clk 0:00:11.7]} 38. Kg3 {[%clk 0:00:46.7]} 38... Kg6 {[%clk 0:00:12.5]}
39. Rbb5 {[%clk 0:00:45.9]} 39... Raa2 {[%clk 0:00:10]} 40. Rb6 {[%clk
0:00:32.7]} 40... h4+ {[%clk 0:00:06.3]} 41. Kxg4 {[%clk 0:00:33.1]} 1-0

[Event "*** Titled Tuesday Blitz"]
[Site "Chess.com"]
[Date "2018.04.03"]
[Round "1"]
[White "Supernotar"]
[Black "ckgchess"]
[Result "0-1"]
[WhiteElo "2165"]
[BlackElo "2528"]
[TimeControl "180+2"]
[EndTime "13:08:34 PDT"]
[Termination "ckgchess won by checkmate"]

1. d4 {[%clk 0:02:58.7]} 1... Nf6 {[%clk 0:03:00.7]} 2. c4 {[%clk 0:02:59.7]}
2... e6 {[%clk 0:03:01.4]} 3. Nf3 {[%clk 0:03:00.9]} 3... b6 {[%clk 0:02:59.6]}
4. g3 {[%clk 0:03:01.3]} 4... Ba6 {[%clk 0:03:00.1]} 5. b3 {[%clk 0:03:01.1]}
5... Bb7 {[%clk 0:02:58]} 6. Bg2 {[%clk 0:03:01.5]} 6... Bb4+ {[%clk 0:02:57.6]}
7. Bd2 {[%clk 0:03:02.3]} 7... c5 {[%clk 0:02:58.5]} 8. O-O {[%clk 0:03:00.7]}
8... O-O {[%clk 0:02:58.5]} 9. a3 {[%clk 0:02:55.5]} 9... Bxd2 {[%clk
0:02:58.2]} 10. Nbxd2 {[%clk 0:02:56.6]} 10... cxd4 {[%clk 0:02:58.5]} 11. Nxd4
{[%clk 0:02:57.5]} 11... Bxg2 {[%clk 0:02:59.7]} 12. Kxg2 {[%clk 0:02:58.4]}
12... d5 {[%clk 0:02:57.9]} 13. cxd5 {[%clk 0:02:48.4]} 13... Qxd5+ {[%clk
0:02:57.2]} 14. N4f3 {[%clk 0:02:49.5]} 14... Nc6 {[%clk 0:02:54.6]} 15. Nc4
{[%clk 0:02:50.4]} 15... Rfd8 {[%clk 0:02:23.4]} 16. Qxd5 {[%clk 0:02:47.6]}
16... Rxd5 {[%clk 0:02:15.6]} 17. Rfd1 {[%clk 0:02:48.5]} 17... b5 {[%clk
0:02:00.4]} 18. Ne3 {[%clk 0:02:43.9]} 18... Rxd1 {[%clk 0:02:00]} 19. Rxd1
{[%clk 0:02:44.4]} 19... Rc8 {[%clk 0:01:40.3]} 20. Nd4 {[%clk 0:02:44]} 20...
Nxd4 {[%clk 0:01:34.6]} 21. Rxd4 {[%clk 0:02:44.5]} 21... Kf8 {[%clk 0:01:27.3]}
22. Rb4 {[%clk 0:02:42.3]} 22... Rc5 {[%clk 0:01:27.9]} 23. a4 {[%clk 0:02:43]}
23... a6 {[%clk 0:01:25.2]} 24. axb5 {[%clk 0:02:41.3]} 24... axb5 {[%clk
0:01:27.1]} 25. Kf3 {[%clk 0:02:37.7]} 25... Ke7 {[%clk 0:01:26.9]} 26. g4
{[%clk 0:02:31.3]} 26... h6 {[%clk 0:01:26]} 27. h4 {[%clk 0:02:31.1]} 27... Nd7
{[%clk 0:01:21.6]} 28. Ke4 {[%clk 0:02:26.2]} 28... Nf6+ {[%clk 0:01:07.8]} 29.
Kf3 {[%clk 0:02:21.3]} 29... Kd6 {[%clk 0:00:54.3]} 30. Rd4+ {[%clk 0:02:17.6]}
30... Kc7 {[%clk 0:00:52.6]} 31. Rd3 {[%clk 0:02:14.3]} 31... Nd7 {[%clk
0:00:53]} 32. Rd4 {[%clk 0:02:07.6]} 32... Ne5+ {[%clk 0:00:51.7]} 33. Ke4
{[%clk 0:02:05.6]} 33... Nc6 {[%clk 0:00:49]} 34. Rd3 {[%clk 0:02:06.4]} 34...
Re5+ {[%clk 0:00:37.9]} 35. Kf4 {[%clk 0:02:04.5]} 35... g5+ {[%clk 0:00:38.6]}
36. hxg5 {[%clk 0:02:05.1]} 36... hxg5+ {[%clk 0:00:40.5]} 37. Kg3 {[%clk
0:02:03.7]} 37... Re4 {[%clk 0:00:38]} 38. f3 {[%clk 0:01:54.1]} 38... Rd4
{[%clk 0:00:31]} 39. Nc2 {[%clk 0:01:41.1]} 39... Rxd3 {[%clk 0:00:28.8]} 40.
exd3 {[%clk 0:01:42.4]} 40... Kd6 {[%clk 0:00:28.6]} 41. f4 {[%clk 0:01:39.7]}
41... gxf4+ {[%clk 0:00:21.6]} 42. Kxf4 {[%clk 0:01:40.9]} 42... Kd5 {[%clk
0:00:19.8]} 43. Kg5 {[%clk 0:01:41.8]} 43... Ne5 {[%clk 0:00:20.9]} 44. Kf6
{[%clk 0:01:38.5]} 44... Nxg4+ {[%clk 0:00:21.4]} 45. Kxf7 {[%clk 0:01:39.5]}
45... Ne5+ {[%clk 0:00:23]} 46. Ke7 {[%clk 0:01:36.3]} 46... Nxd3 {[%clk
0:00:24.9]} 47. Ne3+ {[%clk 0:01:36.4]} 47... Kd4 {[%clk 0:00:25.2]} 48. Nd1
{[%clk 0:01:34.8]} 48... e5 {[%clk 0:00:26.2]} 49. Kd6 {[%clk 0:01:35.4]} 49...
e4 {[%clk 0:00:27.4]} 50. Kc6 {[%clk 0:01:36.5]} 50... b4 {[%clk 0:00:28.6]} 51.
Kb5 {[%clk 0:01:36.6]} 51... e3 {[%clk 0:00:29.1]} 52. Nxe3 {[%clk 0:01:35.5]}
52... Kxe3 {[%clk 0:00:31]} 53. Kc4 {[%clk 0:01:36.8]} 53... Kd2 {[%clk
0:00:32.2]} 54. Kd4 {[%clk 0:01:38]} 54... Kc2 {[%clk 0:00:33.1]} 55. Kc4 {[%clk
0:01:39.4]} 55... Kb2 {[%clk 0:00:31.7]} 56. Kxd3 {[%clk 0:01:39.5]} 56... Kxb3
{[%clk 0:00:33.6]} 57. Kd2 {[%clk 0:01:40.8]} 57... Ka2 {[%clk 0:00:34.8]} 58.
Kc1 {[%clk 0:01:41.8]} 58... b3 {[%clk 0:00:36.7]} 59. Kd2 {[%clk 0:01:43.2]}
59... b2 {[%clk 0:00:38.6]} 60. Kc3 {[%clk 0:01:44.7]} 60... b1=Q {[%clk
0:00:40.5]} 61. Kd4 {[%clk 0:01:46]} 61... Qb3 {[%clk 0:00:40.1]} 62. Ke4 {[%clk
0:01:47.2]} 62... Qc3 {[%clk 0:00:41.3]} 63. Kd5 {[%clk 0:01:48.5]} 63... Qb4
{[%clk 0:00:42.5]} 64. Ke5 {[%clk 0:01:50.1]} 64... Qc4 {[%clk 0:00:43.8]} 65.
Kf5 {[%clk 0:01:51.4]} 65... Qd4 {[%clk 0:00:45.1]} 66. Kg5 {[%clk 0:01:52.6]}
66... Qe4 {[%clk 0:00:46.4]} 67. Kh5 {[%clk 0:01:54.1]} 67... Qg2 {[%clk
0:00:47.1]} 68. Kh4 {[%clk 0:01:55.2]} 68... Kb3 {[%clk 0:00:49]} 69. Kh5 {[%clk
0:01:56.6]} 69... Kc4 {[%clk 0:00:50.9]} 70. Kh6 {[%clk 0:01:58.1]} 70... Kd5
{[%clk 0:00:52.8]} 71. Kh7 {[%clk 0:01:59.7]} 71... Ke5 {[%clk 0:00:54.7]} 72.
Kh8 {[%clk 0:02:01.2]} 72... Kf6 {[%clk 0:00:56.6]} 73. Kh7 {[%clk 0:02:02.8]}
73... Qg7# {[%clk 0:00:58.5]} 0-1

[Event "*** Titled Tuesday Blitz"]
[Site "Chess.com"]
[Date "2018.04.03"]
[Round "1"]
[White "KRASAVCHIK2002"]
[Black "Keaton87"]
[Result "0-1"]
[WhiteElo "1962"]
[BlackElo "2445"]
[TimeControl "180+2"]
[EndTime "13:08:34 PDT"]
[Termination "Keaton87 won by resignation"]

1. e4 {[%clk 0:03:00.5]} 1... c5 {[%clk 0:02:59.9]} 2. Nf3 {[%clk 0:03:01.4]}
2... d6 {[%clk 0:03:00.8]} 3. d4 {[%clk 0:03:02.5]} 3... Nf6 {[%clk 0:03:02.3]}
4. Nc3 {[%clk 0:03:02.6]} 4... cxd4 {[%clk 0:03:03.9]} 5. Nxd4 {[%clk
0:03:03.6]} 5... g6 {[%clk 0:03:05.6]} 6. Be3 {[%clk 0:03:03.9]} 6... Bg7 {[%clk
0:03:07.2]} 7. f3 {[%clk 0:03:05.3]} 7... O-O {[%clk 0:03:09.1]} 8. Qd2 {[%clk
0:03:06.5]} 8... Nc6 {[%clk 0:03:10.7]} 9. O-O-O {[%clk 0:03:07.6]} 9... d5
{[%clk 0:03:12.2]} 10. exd5 {[%clk 0:03:04.3]} 10... Nxd5 {[%clk 0:03:14.1]} 11.
Nxc6 {[%clk 0:03:05.3]} 11... bxc6 {[%clk 0:03:15.4]} 12. Nxd5 {[%clk
0:03:06.3]} 12... cxd5 {[%clk 0:03:17.3]} 13. Bh6 {[%clk 0:03:06.2]} 13... Bxh6
{[%clk 0:03:14.3]} 14. Qxh6 {[%clk 0:03:06.2]} 14... Bf5 {[%clk 0:03:12.3]} 15.
h4 {[%clk 0:03:00.5]} 15... Rc8 {[%clk 0:03:12.2]} 16. Bd3 {[%clk 0:03:01.3]}
16... Bxd3 {[%clk 0:03:05.9]} 17. Rxd3 {[%clk 0:03:02.1]} 17... Qa5 {[%clk
0:03:05.4]} 18. Kb1 {[%clk 0:03:02]} 18... f6 {[%clk 0:02:47.9]} 19. h5 {[%clk
0:03:00.5]} 19... g5 {[%clk 0:02:49.1]} 20. f4 {[%clk 0:02:49.8]} 20... gxf4
{[%clk 0:02:25.4]} 21. g3 {[%clk 0:02:09.7]} 21... Qc5 {[%clk 0:02:12]} 22. c3
{[%clk 0:01:37.3]} 22... f3 {[%clk 0:01:49.3]} 23. Rd4 {[%clk 0:01:23.2]} 23...
Kh8 {[%clk 0:01:47]} 24. Qd2 {[%clk 0:01:09]} 24... Rcd8 {[%clk 0:01:40]} 25.
Rf4 {[%clk 0:01:08.9]} 25... e5 {[%clk 0:01:31.8]} 26. Rxf3 {[%clk 0:01:09.2]}
26... d4 {[%clk 0:01:33.1]} 27. Qf2 {[%clk 0:00:45.1]} 27... Qe7 {[%clk
0:01:30.5]} 28. cxd4 {[%clk 0:00:38.1]} 28... Rxd4 {[%clk 0:01:30.5]} 29. Rf1
{[%clk 0:00:37]} 29... Rd6 {[%clk 0:01:30.7]} 30. g4 {[%clk 0:00:23.9]} 30... e4
{[%clk 0:01:30.9]} 31. Re3 {[%clk 0:00:25]} 31... Qe5 {[%clk 0:01:29]} 32. Qf4
{[%clk 0:00:21.5]} 32... Rd1+ {[%clk 0:01:27.3]} 33. Kc2 {[%clk 0:00:22.5]}
33... Rxf1 {[%clk 0:00:51.6]} 34. Qxf1 {[%clk 0:00:20.2]} 34... Rb8 {[%clk
0:00:52.4]} 35. b3 {[%clk 0:00:19.1]} 35... Rd8 {[%clk 0:00:42.7]} 36. Qe2
{[%clk 0:00:16.6]} 36... Qa5 {[%clk 0:00:35.3]} 37. Rxe4 {[%clk 0:00:10.1]}
37... Qxa2+ {[%clk 0:00:36]} 38. Kc3 {[%clk 0:00:11.4]} 38... Rc8+ {[%clk
0:00:32.8]} 39. Kb4 {[%clk 0:00:07.9]} 39... a5+ {[%clk 0:00:32.3]} 40. Kb5
{[%clk 0:00:06.5]} 40... Qxb3+ {[%clk 0:00:33.4]} 41. Kxa5 {[%clk 0:00:06.9]}
41... Ra8+ {[%clk 0:00:33.4]} 0-1

[Event "*** Titled Tuesday Blitz"]
[Site "Chess.com"]
[Date "2018.04.03"]
[Round "1"]
[White "WanderingPuppet"]
[Black "GMAkobianSTL"]
[Result "0-1"]
[WhiteElo "2302"]
[BlackElo "2640"]
[TimeControl "180+2"]
[EndTime "13:08:37 PDT"]
[Termination "GMAkobianSTL won on time"]

1. e4 {[%clk 0:03:01.9]} 1... d6 {[%clk 0:03:00.7]} 2. d4 {[%clk 0:03:01.8]}
2... Nf6 {[%clk 0:03:00.8]} 3. Nc3 {[%clk 0:03:01]} 3... c6 {[%clk 0:03:01.8]}
4. Bc4 {[%clk 0:02:53.8]} 4... d5 {[%clk 0:03:02.3]} 5. exd5 {[%clk 0:02:52.3]}
5... cxd5 {[%clk 0:03:04.2]} 6. Bb5+ {[%clk 0:02:53.5]} 6... Nc6 {[%clk
0:03:05.2]} 7. Nf3 {[%clk 0:02:52.8]} 7... Bg4 {[%clk 0:03:05.4]} 8. h3 {[%clk
0:02:52.4]} 8... Bxf3 {[%clk 0:03:05.1]} 9. Qxf3 {[%clk 0:02:53]} 9... e6 {[%clk
0:03:06.3]} 10. Bg5 {[%clk 0:02:48.6]} 10... Rc8 {[%clk 0:03:06.4]} 11. O-O-O
{[%clk 0:02:45.9]} 11... Be7 {[%clk 0:03:06.8]} 12. Rhe1 {[%clk 0:02:45.2]}
12... O-O {[%clk 0:03:07.2]} 13. g4 {[%clk 0:02:41.5]} 13... a6 {[%clk
0:03:07.6]} 14. Bxc6 {[%clk 0:02:35.4]} 14... Rxc6 {[%clk 0:03:08]} 15. h4
{[%clk 0:02:28.1]} 15... Qa5 {[%clk 0:02:57.9]} 16. h5 {[%clk 0:02:14.7]} 16...
h6 {[%clk 0:02:55.1]} 17. Bd2 {[%clk 0:01:54.3]} 17... Rfc8 {[%clk 0:02:55.1]}
18. g5 {[%clk 0:01:43.3]} 18... hxg5 {[%clk 0:02:51.8]} 19. Rg1 {[%clk
0:01:40.6]} 19... g4 {[%clk 0:02:28]} 20. Rxg4 {[%clk 0:00:54.8]} 20... Nxg4
{[%clk 0:02:19.1]} 21. Qxg4 {[%clk 0:00:56.7]} 21... Bf6 {[%clk 0:02:15.3]} 22.
Rg1 {[%clk 0:00:49.1]} 22... Kf8 {[%clk 0:01:43.6]} 23. h6 {[%clk 0:00:41.7]}
23... gxh6 {[%clk 0:01:34.4]} 24. Bxh6+ {[%clk 0:00:24.5]} 24... Ke7 {[%clk
0:01:33.2]} 25. Bd2 {[%clk 0:00:24.6]} 25... Rxc3 {[%clk 0:01:25.4]} 26. Bxc3
{[%clk 0:00:26.5]} 26... Rxc3 {[%clk 0:01:25.2]} 27. bxc3 {[%clk 0:00:27.5]}
27... Qxc3 {[%clk 0:01:26.1]} 28. Rd1 {[%clk 0:00:09.9]} 28... Qa1+ {[%clk
0:01:16.5]} 29. Kd2 {[%clk 0:00:10.8]} 29... Qxa2 {[%clk 0:01:17.6]} 30. Qf4
{[%clk 0:00:11.2]} 30... Qc4 {[%clk 0:01:09.8]} 31. c3 {[%clk 0:00:10.7]} 31...
b5 {[%clk 0:01:06.9]} 32. Qb8 {[%clk 0:00:05.5]} 32... Qc6 {[%clk 0:00:20.6]}
33. Qa7+ {[%clk 0:00:05.3]} 33... Kf8 {[%clk 0:00:20.8]} 34. Qb8+ {[%clk
0:00:06.2]} 34... Ke7 {[%clk 0:00:20.1]} 35. Qa7+ {[%clk 0:00:06.3]} 35... Ke8
{[%clk 0:00:18.9]} 36. Qb8+ {[%clk 0:00:07.2]} 36... Bd8 {[%clk 0:00:12.7]} 37.
Rg1 {[%clk 0:00:08.3]} 37... Kd7 {[%clk 0:00:12.5]} 38. Rg8 {[%clk 0:00:06.6]}
38... Qc7 {[%clk 0:00:12.3]} 0-1

[Event "*** Titled Tuesday Blitz"]
[Site "Chess.com"]
[Date "2018.04.03"]
[Round "1"]
[White "bascheyaro"]
[Black "nickmatta"]
[Result "1-0"]
[WhiteElo "2618"]
[BlackElo "2282"]
[TimeControl "180+2"]
[EndTime "13:08:42 PDT"]
[Termination "bascheyaro won by resignation"]

1. d4 {[%clk 0:03:01.9]} 1... Nf6 {[%clk 0:03:00.7]} 2. Nf3 {[%clk 0:03:00]}
2... g6 {[%clk 0:03:01.6]} 3. c4 {[%clk 0:03:01.1]} 3... Bg7 {[%clk 0:03:02.7]}
4. Nc3 {[%clk 0:03:01.2]} 4... d5 {[%clk 0:03:04.2]} 5. Bf4 {[%clk 0:03:01.5]}
5... O-O {[%clk 0:03:04.9]} 6. c5 {[%clk 0:03:01.2]} 6... b6 {[%clk 0:02:22.3]}
7. cxb6 {[%clk 0:03:01.1]} 7... axb6 {[%clk 0:02:22.7]} 8. e3 {[%clk 0:03:02.6]}
8... c5 {[%clk 0:02:14.2]} 9. Be2 {[%clk 0:03:02.6]} 9... Nc6 {[%clk 0:02:03.6]}
10. O-O {[%clk 0:03:02]} 10... Bf5 {[%clk 0:01:51.6]} 11. a3 {[%clk 0:03:02]}
11... c4 {[%clk 0:01:42.1]} 12. Nd2 {[%clk 0:02:57.7]} 12... Na5 {[%clk
0:01:22.4]} 13. b3 {[%clk 0:02:55.5]} 13... cxb3 {[%clk 0:01:10.7]} 14. Nxb3
{[%clk 0:02:56.4]} 14... Nc4 {[%clk 0:01:12.4]} 15. Nb5 {[%clk 0:02:36.9]} 15...
Qd7 {[%clk 0:01:04.2]} 16. a4 {[%clk 0:02:38]} 16... Rfc8 {[%clk 0:00:59.6]} 17.
Ra2 {[%clk 0:02:29.4]} 17... Ne4 {[%clk 0:00:43.9]} 18. Qa1 {[%clk 0:02:29.8]}
18... g5 {[%clk 0:00:31]} 19. Bg3 {[%clk 0:02:29.5]} 19... Nxg3 {[%clk
0:00:30.6]} 20. hxg3 {[%clk 0:02:31.4]} 20... e5 {[%clk 0:00:32.5]} 21. dxe5
{[%clk 0:02:31.6]} 21... Nxe5 {[%clk 0:00:33.6]} 22. N3d4 {[%clk 0:02:31.5]}
22... Bg6 {[%clk 0:00:33.8]} 23. Rd1 {[%clk 0:02:29.7]} 23... Nc4 {[%clk
0:00:25.2]} 24. Rc1 {[%clk 0:02:19]} 24... Qe7 {[%clk 0:00:20.8]} 25. Bg4 {[%clk
0:02:14.1]} 25... Rc5 {[%clk 0:00:17.9]} 26. Be2 {[%clk 0:02:13.5]} 26... Nd6
{[%clk 0:00:17.7]} 27. Nxd6 {[%clk 0:02:03.1]} 27... Qxd6 {[%clk 0:00:19.6]} 28.
Bb5 {[%clk 0:02:04]} 28... Rac8 {[%clk 0:00:20.3]} 29. Rd1 {[%clk 0:02:05.2]}
29... Qe5 {[%clk 0:00:20]} 30. Rad2 {[%clk 0:02:05.8]} 30... Qe7 {[%clk
0:00:16.6]} 31. Qa3 {[%clk 0:02:05.3]} 31... Qc7 {[%clk 0:00:16.1]} 32. Qb3
{[%clk 0:02:05.4]} 32... Rd8 {[%clk 0:00:14.7]} 33. Qb4 {[%clk 0:02:01.2]} 33...
Bf8 {[%clk 0:00:11.8]} 34. Qb3 {[%clk 0:01:56.1]} 34... Rc1 {[%clk 0:00:12.8]}
35. Rxc1 {[%clk 0:01:56.1]} 35... Qxc1+ {[%clk 0:00:14.7]} 36. Rd1 {[%clk
0:01:57.5]} 36... Qc5 {[%clk 0:00:16.3]} 37. Nc6 {[%clk 0:01:55.4]} 37... Bc2
{[%clk 0:00:16.8]} 38. Qb2 {[%clk 0:01:45.2]} 38... Bxd1 {[%clk 0:00:16.2]} 39.
Nxd8 {[%clk 0:01:46.6]} 39... Bg7 {[%clk 0:00:12.6]} 40. Qd2 {[%clk 0:01:47.2]}
40... Bb3 {[%clk 0:00:11.4]} 41. Nc6 {[%clk 0:01:48]} 41... Bc4 {[%clk
0:00:06.9]} 42. Bxc4 {[%clk 0:01:45.5]} 42... Qxc4 {[%clk 0:00:08.8]} 43. Qxd5
{[%clk 0:01:45.8]} 43... Qxd5 {[%clk 0:00:06.1]} 44. Ne7+ {[%clk 0:01:46.8]}
44... Kf8 {[%clk 0:00:07]} 45. Nxd5 {[%clk 0:01:48.7]} 45... Ke8 {[%clk
0:00:07.7]} 46. Nxb6 {[%clk 0:01:50]} 46... Kd8 {[%clk 0:00:08.4]} 47. f4 {[%clk
0:01:49.3]} 47... g4 {[%clk 0:00:05.5]} 48. Kf2 {[%clk 0:01:47.8]} 48... Kc7
{[%clk 0:00:06.4]} 49. Nc4 {[%clk 0:01:48.9]} 49... Kc6 {[%clk 0:00:06.3]} 50.
Ke2 {[%clk 0:01:50.2]} 50... Kc5 {[%clk 0:00:07.3]} 51. Kd3 {[%clk 0:01:52.1]}
51... Kb4 {[%clk 0:00:07.5]} 52. a5 {[%clk 0:01:54]} 52... Kb5 {[%clk
0:00:07.5]} 53. Nd6+ {[%clk 0:01:55.5]} 53... Kxa5 {[%clk 0:00:08.5]} 54. Nxf7
{[%clk 0:01:57.4]} 54... Kb5 {[%clk 0:00:09.1]} 55. Ke4 {[%clk 0:01:58.6]} 55...
Kc5 {[%clk 0:00:09.2]} 56. Kf5 {[%clk 0:02:00.1]} 56... h5 {[%clk 0:00:09.8]}
57. Kg5 {[%clk 0:02:01.6]} 57... Kc4 {[%clk 0:00:10.6]} 58. Kxh5 {[%clk
0:02:03.1]} 58... Kd3 {[%clk 0:00:12.3]} 59. Kxg4 {[%clk 0:02:04.6]} 59... Kxe3
{[%clk 0:00:13.9]} 60. Ng5 {[%clk 0:02:06.2]} 60... Kf2 {[%clk 0:00:13.6]} 61.
Kh3 {[%clk 0:02:06.9]} 61... Bh6 {[%clk 0:00:11.1]} 62. Nh7 {[%clk 0:02:07.9]}
62... Ke3 {[%clk 0:00:10.7]} 63. f5 {[%clk 0:02:09.4]} 63... Ke4 {[%clk
0:00:11.5]} 64. f6 {[%clk 0:02:11.3]} 64... Kf5 {[%clk 0:00:10]} 65. f7 {[%clk
0:02:13.2]} 65... Kg6 {[%clk 0:00:10.8]} 66. f8=Q {[%clk 0:02:14.3]} 66... Bxf8
{[%clk 0:00:12.4]} 67. Nxf8+ {[%clk 0:02:16.2]} 67... Kf7 {[%clk 0:00:14]} 68.
Nd7 {[%clk 0:02:18.1]} 68... Ke7 {[%clk 0:00:15.5]} 69. Nc5 {[%clk 0:02:20]}
69... Kd6 {[%clk 0:00:17]} 70. Nd3 {[%clk 0:02:21.9]} 70... Kd5 {[%clk
0:00:18.2]} 71. g4 {[%clk 0:02:23.8]} 71... Ke6 {[%clk 0:00:20.1]} 72. Kh4
{[%clk 0:02:25]} 72... Kf7 {[%clk 0:00:22]} 73. g5 {[%clk 0:02:26.9]} 73... Kg7
{[%clk 0:00:23.9]} 74. Kh5 {[%clk 0:02:28.6]} 74... Kg8 {[%clk 0:00:25.8]} 75.
g6 {[%clk 0:02:30.5]} 75... Kg7 {[%clk 0:00:27.5]} 76. Kg5 {[%clk 0:02:31.7]}
76... Kg8 {[%clk 0:00:29.4]} 77. Kh6 {[%clk 0:02:33.5]} 77... Kh8 {[%clk
0:00:30.8]} 78. g7+ {[%clk 0:02:34.4]} 78... Kg8 {[%clk 0:00:32.7]} 79. g3
{[%clk 0:02:35.4]} 1-0